bitfinex/quotes_SOLUSD_20260310
["timestamp","ask_amount","ask_price","bid_price","bid_amount"]
[1773151530783,11.11402603,86.23,86.191,2.21160726]
[1773151530981,46.37128586,86.261,86.166,92.84328584]
[1773151530982,2.20938854,86.24,86.201,11.60079349]
[1773151531182,2.20938854,86.24,86.21,11.11402603]
[1773151531381,2.20938854,86.253,86.211,2.21160726]
[1773151531583,11.59393405,86.252,86.22,11.11402603]
[1773151531903,11.59393405,86.252,86.22,13.32563329]
[1773151532109,3.69383402,86.268,86.201,40.60277722]
[1773151532110,11.11402603,86.28,86.24,11.11402603]
[1773151532281,2.20938854,86.289,86.201,237.8162666]
[1773151532282,11.58909697,86.288,86.25,2.21160726]
[1773151532604,11.58909697,86.288,86.22,11.11402603]
[1773151532605,11.11402603,86.26,86.222,2.21160726]
[1773151533009,11.59178374,86.268,86.231,2.21160726]
[1773151533206,11.59109906,86.274,86.24,11.11402603]
[1773151533398,2.20938854,86.259,86.223,11.59783352]
[1773151534005,2.20938854,86.259,86.23,11.11402603]
[1773151534591,2.20938854,86.259,86.191,46.40837262]
[1773151534592,2.34393644,86.249,86.212,11.59920166]
[1773151534796,11.11402603,86.24,86.212,11.59920166]
[1773151535003,13.9396182,86.239,86.204,11.60038977]
[1773151535382,11.11402603,86.23,86.195,11.60159178]
[1773151535801,2.34393644,86.238,86.19,22.71622169]
[1773151535802,11.11402603,86.22,86.19,22.71622169]
[1773151536022,11.11402603,86.22,86.129,46.44171706]
[1773151536023,11.11402603,86.21,86.17,11.11402603]
[1773151536303,13.45796247,86.2,86.167,11.60537096]
[1773151536482,2.34393644,86.199,86.167,11.60537096]
[1773151536901,2.34393644,86.199,86.16,11.11402603]
[1773151536902,11.60119724,86.198,86.161,11.60617912]
[1773151537507,11.11402603,86.19,86.161,11.60617912]
[1773151538114,11.60063807,86.203,86.171,2.24242331]
[1773151538281,11.60063807,86.203,86.155,11.60686871]
[1773151538282,2.34393644,86.199,86.16,11.11402603]
[1773151538486,13.45796247,86.19,86.155,11.60686871]
[1773151538686,2.34393644,86.19,86.16,11.11402603]
[1773151538898,13.45796247,86.19,86.155,11.60686871]
[1773151539603,11.11402603,86.18,86.148,11.60793053]
[1773151539807,2.34393644,86.179,86.133,2.24242331]
[1773151540010,2.34393644,86.179,86.1,57.57153229]
[1773151540011,11.60240866,86.189,86.15,11.11402603]
[1773151540187,11.11402603,86.19,86.151,2.24242331]
[1773151540508,11.11402603,86.19,86.134,11.60981726]
[1773151540509,11.11402603,86.2,86.161,2.24242331]
[1773151540802,11.11402603,86.18,86.148,2.24242331]
[1773151541387,11.11402603,86.17,86.134,11.60981726]
[1773151541582,3.69383402,86.188,86.113,2.24242331]
[1773151541583,11.11402603,86.15,86.113,2.24242331]
[1773151541781,13.45796247,86.15,86.116,11.61224395]
[1773151542083,2.34393644,86.15,86.12,11.11402603]
[1773151542288,13.45796247,86.15,86.116,11.61224395]
[1773151542591,44.312161,86.168,86.081,11.61696541]
[1773151542592,2.34393644,86.129,86.081,11.61696541]
[1773151542794,2.34393644,86.119,86.081,11.61696541]
[1773151542995,2.34393644,86.119,86.081,40.65937895]
[1773151543303,2.34393644,86.119,86.081,42.90180226]
[1773151543509,3.69383402,86.148,86.1,11.11402603]
[1773151543510,2.34393644,86.132,86.1,11.11402603]
[1773151543682,2.34393644,86.132,86.08,0.1]
[1773151543683,11.60895938,86.141,86.11,11.11402603]
[1773151543887,2.34393644,86.145,86.11,11.11402603]
[1773151544290,11.11402603,86.16,86.121,2.24242331]
[1773151544489,2.34393644,86.169,86.13,11.11402603]
[1773151544684,2.34393644,86.169,86.14,11.11402603]
[1773151544912,2.34393644,86.169,86.101,145.17833705]
[1773151544913,11.11402603,86.17,86.134,2.24242331]
[1773151545092,2.34393644,86.174,86.14,11.11402603]
[1773151545497,11.60397102,86.178,86.14,11.11402603]
[1773151545699,46.37853016,86.247,86.101,203.24967187]
[1773151545700,11.08628867,86.19,86.151,2.24242331]
[1773151545909,2.34393644,86.189,86.151,2.24242331]
[1773151546098,2.34393644,86.189,86.15,11.08628867]
[1773151546418,11.60128102,86.198,86.12,11.08628867]
[1773151546419,2.34393644,86.159,86.12,11.08628867]
[1773151546608,2.34393644,86.159,86.114,11.61251364]
[1773151546811,11.08628867,86.14,86.114,11.61251364]
[1773151547310,2.16678298,86.149,86.114,11.61251364]
[1773151547491,2.16678298,86.162,86.121,2.2438636]
[1773151547687,24.85810585,86.17,86.132,11.61008684]
[1773151547926,2.16678298,86.179,86.14,11.08628867]
[1773151548123,11.08628867,86.19,86.15,11.08628867]
[1773151548629,46.37755029,86.249,86.132,40.63530394]
[1773151548630,11.08628867,86.2,86.16,11.08628867]
[1773151548923,11.08628867,86.2,86.132,145.12608552]
[1773151548924,2.16678298,86.189,86.15,11.08628867]
[1773151549219,2.16678298,86.199,86.16,11.08628867]
[1773151550116,13.76788937,86.199,86.17,11.08628867]
[1773151550410,13.76788937,86.199,86.121,3.69383402]
[1773151550411,2.16678298,86.189,86.15,2.2438636]
[1773151550588,2.16678298,86.189,86.151,13.85138992]
[1773151550993,2.16678298,86.179,86.137,2.2438636]
[1773151551222,2.16678298,86.179,86.14,11.08628867]
[1773151551396,2.16678298,86.169,86.13,11.08628867]
[1773151551593,2.16678298,86.169,86.14,11.08628867]
[1773151551804,11.08628867,86.18,86.141,2.2438636]
[1773151552012,2.16678298,86.179,86.141,2.2438636]
[1773151552199,2.16678298,86.169,86.13,11.08628867]
[1773151553401,2.16678298,86.169,86.127,40.63766298]
[1773151553402,2.16678298,86.186,86.15,11.08628867]
[1773151553997,11.60388962,86.178,86.14,11.08628867]
[1773151554206,2.16678298,86.169,86.131,40.63577572]
[1773151554507,13.25307165,86.16,86.121,40.64028509]
[1773151554712,11.08628867,86.17,86.13,11.08628867]
[1773151554909,2.16678298,86.169,86.13,11.08628867]
[1773151555622,2.16678298,86.169,86.131,2.2438636]
[1773151556330,2.16678298,86.168,86.131,2.2438636]
[1773151556713,2.16678298,86.149,86.11,11.08628867]
[1773151557524,3.69383402,86.168,86.104,40.64851806]
[1773151557525,2.16678298,86.139,86.104,40.64851806]
[1773151557729,2.16678298,86.129,86.095,11.61507636]
[1773151558413,3.69383402,86.158,86.091,11.61561603]
[1773151558414,2.16678298,86.119,86.091,11.61561603]
[1773151558906,11.08628867,86.11,86.081,11.61696541]
[1773151559835,11.08628867,86.1,86.08,0.1]
[1773151560336,2.16678298,86.107,86.08,0.1]
[1773151560827,11.6133228,86.108,86.063,11.6193648]
[1773151560828,2.16678298,86.089,86.063,11.6193648]
[1773151561200,2.16678298,86.099,86.063,11.6193648]
[1773151561406,40.6466298,86.108,86.063,11.6193648]
[1773151561407,2.16678298,86.089,86.063,11.6193648]
[1773151561600,29.02964549,86.119,86.064,2.2438636]
[1773151561804,2.16678298,86.109,86.071,2.2438636]
[1773151562006,2.16678298,86.099,86.063,11.6193648]
[1773151562213,2.16678298,86.089,86.052,11.62088039]
[1773151562413,11.08628867,86.09,86.052,11.62088039]
[1773151562629,3.69383402,86.108,86.052,11.62088039]
[1773151562630,2.16678298,86.079,86.052,11.62088039]
[1773151562814,13.25307165,86.07,86.042,11.622231]
[1773151563530,2.16678298,86.069,86.031,11.62371703]
[1773151563935,2.1557184,86.079,86.041,2.17608951]
[1773151564433,2.1557184,86.107,86.071,11.61831511]
[1773151564734,11.08628867,86.08,86.051,11.62101544]
[1773151565026,2.1557184,86.089,86.051,11.62101544]
[1773151565209,2.1557184,86.059,86.03,11.62385214]
[1773151565524,11.08628867,86.06,86.03,51.76977117]
[1773151565730,13.24200707,86.07,86.031,2.17608951]
[1773151566035,11.08628867,86.09,86.051,2.17608951]
[1773151566409,11.08628867,86.09,86.052,40.67308138]
[1773151566612,11.08628867,86.08,86.052,11.62088039]
[1773151566931,11.08628867,86.08,86.04,2.17608951]
[1773151566932,2.1557184,86.079,86.042,29.05549815]
[1773151567118,2.1557184,86.069,86.042,29.05549815]
[1773151567429,2.1557184,86.069,86.041,11.62236608]
[1773151567635,40.65560059,86.089,86.022,11.62493315]
[1773151567636,2.1557184,86.059,86.022,11.62493315]
[1773151567815,2.1557184,86.039,86.0,40.15583809]
[1773151568017,11.08628867,86.08,86.031,2.17608951]
[1773151568219,2.1557184,86.079,86.04,11.08628867]
[1773151568539,2.1557184,86.069,86.04,22.7087428]
[1773151568711,2.1557184,86.069,86.035,11.62312621]
[1773151569220,2.1557184,86.049,86.022,11.62493315]
[1773151569731,2.1557184,86.049,85.981,10.46886905]
[1773151569732,11.08628867,86.03,85.999,11.62804218]
[1773151569907,13.24200707,86.03,85.999,11.62804218]
[1773151570109,2.1557184,86.019,85.999,11.62804218]
[1773151570607,11.08628867,86.02,85.991,40.70193391]
[1773151570811,11.08628867,86.02,85.99,11.18628867]
[1773151570812,2.1557184,86.009,85.99,0.1]
[1773151571238,2.1557184,85.999,85.97,0.1]
[1773151571419,87.17990445,86.029,85.94,11.08628867]
[1773151571420,11.08628867,85.98,85.94,11.08628867]
[1773151571615,2.1557184,85.979,85.929,2.17608951]
[1773151571818,2.1557184,85.979,85.928,40.73177543]
[1773151571819,11.08628867,85.95,85.928,11.63765012]
[1773151572019,3.69383402,85.978,85.93,13.26237818]
[1773151572020,11.08628867,85.97,85.93,13.26237818]
[1773151572220,11.08628867,85.96,85.928,40.73177543]
[1773151572416,11.08628867,85.96,85.928,11.63765012]
[1773151572616,2.1557184,85.957,85.923,11.63826902]
[1773151572810,2.1557184,85.962,85.93,11.08628867]
[1773151573019,13.24200707,85.96,85.923,11.63826902]
[1773151573224,3.69383402,85.978,85.923,11.63826902]
[1773151573225,11.08628867,85.95,85.923,11.63826902]
[1773151573439,11.63318248,85.961,85.9,11.08628867]
[1773151573440,2.1557184,85.939,85.9,11.08628867]
[1773151573614,2.1557184,85.939,85.855,46.58982951]
[1773151573615,11.08628867,85.93,85.89,11.08628867]
[1773151573815,11.08628867,85.93,85.891,11.64266337]
[1773151573816,2.1557184,85.929,85.891,11.64266337]
[1773151574028,11.08628867,85.92,85.891,11.64266337]
[1773151574332,2.1557184,85.942,85.91,11.08628867]
[1773151574536,11.08628867,85.94,85.91,11.08628867]
[1773151574730,4.82477569,85.982,85.876,93.1574676]
[1773151574731,11.08628867,85.95,85.92,11.08628867]
[1773151574914,11.08628867,85.95,85.921,2.17608951]
[1773151575119,2.1557184,85.957,85.892,11.64252782]
[1773151575120,2.1557184,85.929,85.892,11.64252782]
[1773151575425,11.08628867,85.92,85.892,11.64252782]
[1773151575622,3.69383402,85.948,85.9,11.08628867]
[1773151575623,11.08628867,85.93,85.9,11.08628867]
[1773151575816,11.08628867,85.94,85.91,11.08628867]
[1773151576026,11.08628867,85.94,85.901,2.17608951]
[1773151576229,13.24200707,85.93,85.892,40.74884738]
[1773151576428,40.71803342,85.957,85.91,11.08628867]
[1773151576429,11.08628867,85.94,85.91,11.08628867]
[1773151576716,40.69010415,86.016,85.931,2.17608951]
[1773151577035,40.69010415,86.016,85.944,2.17608951]
[1773151577036,11.08628867,85.98,85.944,2.17608951]
[1773151577332,11.08628867,85.98,85.912,180.41717104]
[1773151577333,11.08628867,85.96,85.93,2.17608951]
[1773151577531,11.08628867,85.96,85.921,2.17608951]
[1773151578250,284.83072914,86.016,85.941,2.17608951]
[1773151578251,11.08628867,85.97,85.941,2.17608951]
[1773151578541,3.69383402,85.977,85.941,2.17608951]
[1773151578719,2.1557184,85.989,85.951,2.17608951]
[1773151578918,13.24200707,85.98,85.952,11.63440059]
[1773151579336,13.24200707,85.98,85.941,11.63588973]
[1773151579337,11.08628867,85.97,85.941,11.63588973]
[1773151579521,11.08628867,85.97,85.941,40.72561407]
[1773151579721,11.08628867,85.98,85.942,2.17608951]
[1773151579924,11.08628867,85.98,85.941,40.72561407]
[1773151579925,8.74993196,86.017,85.971,2.17608951]
[1773151579926,11.08628867,86.0,85.971,2.17608951]
[1773151580122,2.1557184,86.015,85.981,2.17608951]
[1773151580337,2.1557184,86.019,85.981,2.17608951]
[1773151580549,11.08628867,86.01,85.981,2.17608951]
[1773151580722,11.62669023,86.009,85.972,2.17608951]
[1773151581328,2.1557184,86.008,85.972,2.17608951]
[1773151583046,11.08628867,85.99,85.96,13.26237818]
[1773151583221,11.08628867,85.99,85.958,11.63358849]
[1773151583222,2.1557184,85.989,85.958,11.63358849]
[1773151583647,11.08628867,85.97,85.94,11.08628867]
[1773151583850,11.08628867,85.97,85.936,2.17608951]
[1773151583851,13.24200707,85.97,85.936,2.17608951]
[1773151584023,2.1557184,85.959,85.92,11.08628867]
[1773151584426,2.1557184,85.959,85.916,2.17608951]
[1773151584427,11.08628867,85.95,85.921,2.17608951]
[1773151584643,11.08628867,85.95,85.915,40.73793865]
[1773151585045,11.08628867,85.95,85.915,31.27461712]
[1773151585344,11.08628867,85.95,85.916,2.17608951]
[1773151585552,11.08628867,85.94,85.911,11.63995297]
[1773151585727,13.79052508,85.949,85.911,11.63995297]
[1773151586128,13.79052508,85.949,85.911,40.7398354]
[1773151586324,11.08628867,85.95,85.92,13.26237818]
[1773151586529,11.08628867,85.95,85.92,2.17608951]
[1773151586930,11.63480668,85.949,85.921,11.63859824]
[1773151587156,11.08628867,85.95,85.913,2.17608951]
[1773151587556,11.08628867,85.95,85.912,29.09954371]
[1773151587557,11.08628867,85.96,85.928,2.17608951]
[1773151587730,2.1557184,85.977,85.941,2.17608951]
[1773151587933,11.08628867,85.97,85.941,2.17608951]
[1773151588135,11.08628867,85.98,85.95,11.08628867]
[1773151588459,22.7141969,86.0,85.961,2.17608951]
[1773151588752,22.7141969,86.0,85.96,11.08628867]
[1773151588753,11.08628867,86.0,85.971,2.17608951]
[1773151588932,11.62669245,86.009,85.951,11.63453595]
[1773151588933,11.08628867,85.98,85.951,11.63453595]
[1773151589254,3.69383402,86.019,85.951,11.63453595]
[1773151589255,11.08628867,86.01,85.971,2.17608951]
[1773151589446,2.1557184,86.009,85.971,2.17608951]
[1773151589641,2.1557184,86.009,85.97,11.08628867]
[1773151589642,2.1557184,85.999,85.951,40.72087584]
[1773151589856,2.1557184,85.999,85.96,11.08628867]
[1773151590036,2.1557184,85.999,85.96,13.26237818]
[1773151590355,11.08628867,85.99,85.96,13.26237818]
[1773151590858,11.08628867,85.97,85.947,11.63505324]
[1773151591063,2.1557184,85.992,85.95,11.08628867]
[1773151591368,2.1557184,85.992,85.946,2.17608951]
[1773151591369,11.08628867,85.98,85.946,2.17608951]
[1773151591550,11.08628867,85.99,85.95,13.26237818]
[1773151591865,11.08628867,85.98,85.95,13.26237818]
[1773151592037,2.1557184,85.992,85.952,11.63440059]
[1773151592038,11.62939445,85.989,85.952,11.63440059]
[1773151592358,11.08628867,85.98,85.94,11.08628867]
[1773151592534,2.1557184,85.979,85.941,11.63588973]
[1773151592732,2.1557184,85.979,85.942,2.17608951]
[1773151592941,11.08628867,85.97,85.942,2.17608951]
[1773151593133,11.08628867,85.97,85.941,40.72561407]
[1773151593134,2.1557184,86.024,85.951,2.17608951]
[1773151593350,11.08628867,85.99,85.96,11.08628867]
[1773151593667,11.08628867,86.0,85.961,2.17608951]
[1773151593843,11.08628867,85.99,85.961,2.17608951]
[1773151594043,13.84298198,85.998,85.961,2.17608951]
[1773151594243,11.08628867,85.98,85.951,11.63453595]
[1773151594458,11.08628867,85.99,85.96,11.08628867]
[1773151594644,11.08628867,86.0,85.961,2.36587913]
[1773151594840,11.08628867,86.0,85.951,40.72087584]
[1773151594841,2.21480459,86.019,85.971,2.36587913]
[1773151595154,2.21480459,86.019,85.951,191.96984326]
[1773151595155,11.08628867,86.02,85.99,2.36587913]
[1773151595459,2.21480459,86.028,85.99,13.4521678]
[1773151595657,11.08628867,86.02,85.99,13.4521678]
[1773151595958,11.08628867,86.03,86.0,11.08628867]
[1773151596159,11.08628867,86.03,85.954,3.69383402]
[1773151596160,11.08628867,86.03,85.993,2.36587913]
[1773151596659,2.21480459,86.039,86.001,2.36587913]
[1773151596846,11.08628867,86.02,85.992,11.62898874]
[1773151597046,11.08628867,86.03,86.0,11.08628867]
[1773151597241,11.08628867,86.02,85.993,2.36587913]
[1773151597454,2.21480459,86.029,85.993,2.36587913]
[1773151598163,2.21480459,86.029,86.0,11.08628867]
[1773151598458,29.05306012,86.05,86.001,2.36587913]
[1773151598671,11.08628867,86.04,86.001,2.36587913]
[1773151598854,11.08628867,86.05,86.02,11.08628867]
[1773151599161,11.08628867,86.05,86.01,11.08628867]
[1773151599162,2.21480459,86.039,86.01,11.08628867]
[1773151599358,11.08628867,86.04,86.01,11.08628867]
[1773151599562,2.21480459,86.051,86.02,11.08628867]
[1773151600066,11.08628867,86.05,86.011,2.36587913]
[1773151600362,13.30109326,86.06,86.03,11.08628867]
[1773151600539,46.44924237,86.116,86.012,11.6262847]
[1773151600540,2.21480459,86.098,86.051,2.36587913]
[1773151600743,2.21480459,86.098,86.06,13.4521678]
[1773151600943,2.21480459,86.098,86.07,11.08628867]
[1773151601160,13.82947624,86.098,86.061,2.36587913]
[1773151601343,2.21480459,86.089,86.047,2.36587913]
[1773151601540,11.08628867,86.08,86.04,11.08628867]
[1773151601743,11.08628867,86.08,86.041,2.36587913]
[1773151601966,2.21480459,86.089,86.041,2.36587913]
[1773151601967,2.21480459,86.089,86.05,11.08628867]
[1773151602172,3.69383402,86.095,86.041,2.36587913]
[1773151602173,2.21480459,86.078,86.042,11.622231]
[1773151602547,3.69383402,86.095,86.042,11.622231]
[1773151602548,11.61353867,86.107,86.071,2.36587913]
[1773151602748,2.21480459,86.106,86.071,2.36587913]
[1773151603154,3.69383402,86.12,86.071,2.36587913]
[1773151603358,11.61201362,86.118,86.08,11.08628867]
[1773151603555,11.61255011,86.114,86.08,11.08628867]
[1773151603759,2.21480459,86.119,86.08,11.08628867]
[1773151603982,2.21480459,86.119,86.09,11.08628867]
[1773151604167,29.02466457,86.134,86.091,11.61561603]
[1773151604168,11.61061182,86.129,86.091,11.61561603]
[1773151604376,11.08628867,86.12,86.086,11.61622073]
[1773151604668,2.21480459,86.119,86.086,11.61622073]
[1773151605265,2.21480459,86.119,86.081,2.36587913]
[1773151605266,11.08628867,86.11,86.081,13.98275132]
[1773151605461,2.21480459,86.119,86.081,13.98275132]
[1773151605665,11.10404026,86.1,86.062,29.04873111]
[1773151605855,11.10404026,86.1,86.07,11.10404026]
[1773151606062,11.10404026,86.1,86.064,2.36587913]
[1773151606365,13.31884485,86.1,86.07,11.10404026]
[1773151606669,2.21480459,86.1,86.071,11.61831511]
[1773151606869,2.21480459,86.1,86.071,40.66410288]
[1773151607168,13.31884485,86.1,86.071,11.61831511]
[1773151607360,2.21480459,86.1,86.071,11.61831511]
[1773151607869,2.21480459,86.1,86.066,11.61892995]
[1773151607870,2.31649481,86.098,86.066,11.61892995]
[1773151608248,11.10404026,86.1,86.07,11.10404026]
[1773151608445,22.71845544,86.1,86.066,11.61892995]
[1773151608650,22.71845544,86.1,86.063,2.25516049]
[1773151608651,2.31649481,86.089,86.05,11.10404026]
[1773151609068,11.10404026,86.08,86.05,11.10404026]
[1773151609671,2.31649481,86.079,86.041,29.05571503]
[1773151609870,2.31649481,86.079,86.042,40.6778085]
[1773151610068,2.31649481,86.079,86.05,11.10404026]
[1773151610247,2.31649481,86.089,86.051,2.25516049]
[1773151610448,11.10404026,86.08,86.05,11.10404026]
[1773151610669,2.31649481,86.079,86.042,40.6778085]
[1773151610856,2.31649481,86.079,86.05,11.10404026]
[1773151611050,2.31649481,86.089,86.05,11.10404026]
[1773151611452,2.31649481,86.089,86.05,13.35920075]
[1773151611774,2.31649481,86.089,86.051,2.25516049]
[1773151611960,11.10404026,86.08,86.051,2.25516049]
[1773151612159,11.10404026,86.08,86.05,11.10404026]
[1773151612160,2.31649481,86.079,86.042,11.622231]
[1773151612368,11.10404026,86.08,86.011,2.25516049]
[1773151612369,2.31649481,86.049,86.011,2.25516049]
[1773151612562,13.42053507,86.04,86.002,2.25516049]
[1773151612873,11.62398726,86.029,85.992,11.62898874]
[1773151613075,2.31649481,86.019,85.992,11.62898874]
[1773151613368,22.72797818,86.03,85.993,2.25516049]
[1773151613671,11.10404026,86.02,85.993,2.25516049]
[1773151614160,11.10404026,86.02,85.992,11.62898874]
[1773151614356,11.10404026,86.02,85.992,13.88414923]
[1773151614774,2.31649481,86.029,85.993,2.25516049]
[1773151615078,11.10404026,86.03,85.993,2.25516049]
[1773151615261,11.62398726,86.029,85.993,2.25516049]
[1773151615468,11.10404026,86.03,85.993,2.25516049]
[1773151615664,2.31649481,86.019,85.983,11.63020597]
[1773151615979,11.10404026,86.01,85.983,11.63020597]
[1773151616374,11.10404026,86.0,85.972,11.63169403]
[1773151616562,2.31649481,86.009,85.973,2.25516049]
[1773151617158,2.31649481,86.009,85.913,46.55848374]
[1773151617159,11.10404026,86.0,85.974,11.63142345]
[1773151617883,29.06191738,86.024,85.975,2.25516049]
[1773151617884,11.10404026,86.01,85.975,2.25516049]
[1773151618073,11.10404026,86.0,85.975,2.25516049]
[1773151618391,11.10404026,86.0,85.974,40.70998208]
[1773151618392,3.69383402,86.032,85.98,11.10404026]
[1773151618561,11.10404026,86.0,85.968,11.63210119]
[1773151618767,13.42053507,86.0,85.968,11.63210119]
[1773151619173,13.42053507,86.0,85.968,29.08058812]
[1773151619374,11.62804218,85.999,85.962,2.25516049]
[1773151619964,2.31649481,85.998,85.962,2.25516049]
[1773151620180,11.10404026,85.99,85.962,2.25516049]
[1773151620583,11.10404026,85.98,85.961,11.63318248]
[1773151621092,13.42053507,85.98,85.949,29.08676319]
[1773151621264,40.69814764,85.999,85.942,11.63575434]
[1773151621265,11.63209994,85.969,85.942,11.63575434]
[1773151621463,11.10404026,85.97,85.942,11.63575434]
[1773151621763,11.10404026,85.97,85.903,3.69383402]
[1773151621764,11.10404026,85.95,85.921,11.63859824]
[1773151622080,11.10404026,85.94,85.911,11.63995297]
[1773151622395,2.31649481,85.949,85.911,11.63995297]
[1773151622683,2.31649481,85.949,85.851,4.82477569]
[1773151622684,2.31649481,85.929,85.897,2.25516049]
[1773151622870,2.31649481,85.929,85.896,11.64188649]
[1773151623064,2.31649481,85.968,85.901,2.25516049]
[1773151623272,40.71234979,85.969,85.93,11.10404026]
[1773151623273,2.31649481,85.969,85.93,11.10404026]
[1773151623469,2.31649481,85.969,85.912,40.73936119]
[1773151623470,11.10404026,85.99,85.951,2.25516049]
[1773151623785,9.40165227,86.013,85.912,133.85790109]
[1773151623786,11.10404026,85.97,85.931,2.27120201]
[1773151624084,11.10404026,85.98,85.941,2.27120201]
[1773151624475,11.10404026,85.99,85.951,2.27120201]
[1773151624784,11.10404026,86.0,85.971,2.27120201]
[1773151624986,11.10404026,86.01,85.971,2.27120201]
[1773151625185,2.41014004,85.999,85.961,11.63318248]
[1773151625363,2.41014004,85.999,85.929,46.54955172]
[1773151625364,11.10404026,85.98,85.948,2.27120201]
[1773151625565,11.10404026,85.96,85.931,11.63724383]
[1773151625788,11.10404026,85.95,85.92,11.63865695]
[1773151626086,11.10404026,85.94,85.92,2.27120201]
[1773151626299,11.10404026,85.93,85.893,2.27120201]
[1773151626785,11.10404026,85.94,85.901,2.27120201]
[1773151626987,8.71069724,86.012,85.89,11.10404026]
[1773151626988,11.10404026,85.93,85.89,11.10404026]
[1773151627283,11.10404026,85.93,85.891,11.64266337]
[1773151627284,2.41014004,85.929,85.891,11.64266337]
[1773151627495,11.10404026,85.92,85.891,11.64266337]
[1773151627683,11.63765012,85.928,85.879,11.64429022]
[1773151627684,13.5141803,85.91,85.879,11.64429022]
[1773151627883,13.5141803,85.91,85.881,2.27120201]
[1773151627884,11.10404026,85.91,85.881,2.27120201]
[1773151628084,11.63765012,85.928,85.868,2.27120201]
[1773151628085,11.10404026,85.89,85.868,2.27120201]
[1773151628386,11.10404026,85.89,85.85,0.1]
[1773151628387,11.10404026,85.93,85.881,2.27120201]
[1773151628573,11.10404026,85.92,85.881,2.27120201]
[1773151629177,11.10404026,85.92,85.855,46.58997152]
[1773151629178,11.10404026,85.92,85.892,11.64252782]
[1773151629376,11.10404026,85.93,85.893,2.27120201]
[1773151629771,11.10404026,85.92,85.893,2.27120201]
[1773151629994,11.10404026,85.93,85.893,2.27120201]
[1773151630195,11.10404026,85.93,85.87,13.37524227]
[1773151630196,11.10404026,85.9,85.87,13.37524227]
[1773151630385,2.41014004,85.909,85.871,11.64537503]
[1773151630386,11.10404026,85.89,85.871,11.64537503]
[1773151630581,3.69383402,85.917,85.872,2.27120201]
[1773151630888,11.6365958,85.936,85.871,11.64537503]
[1773151630889,11.10404026,85.92,85.89,11.10404026]
[1773151631090,11.10404026,85.92,85.89,2.27120201]
[1773151631288,11.10404026,85.9,85.871,11.64537503]
[1773151631592,11.10404026,85.9,85.866,2.27120201]
[1773151631593,11.10404026,85.88,85.843,2.27120201]
[1773151631889,2.41014004,85.889,85.851,2.27120201]
[1773151632093,11.10404026,85.88,85.851,2.27120201]
[1773151632289,11.64157906,85.899,85.86,11.10404026]
[1773151632473,22.74549889,85.9,85.861,2.27120201]
[1773151632669,11.10404026,85.9,85.861,2.27120201]
[1773151632899,2.41014004,85.912,85.871,2.27120201]
[1773151633082,11.10404026,85.9,85.871,2.27120201]
[1773151633278,11.10404026,85.89,85.859,2.27120201]
[1773151634102,11.10404026,85.89,85.851,40.76830787]
[1773151634103,11.10404026,85.89,85.861,2.27120201]
[1773151634299,11.10404026,85.9,85.861,2.27120201]
[1773151635211,11.10404026,85.9,85.871,2.27120201]
[1773151635401,46.52813709,85.97,85.88,11.10404026]
[1773151635402,11.10404026,85.91,85.88,11.10404026]
[1773151635598,2.41014004,85.921,85.881,2.27120201]
[1773151635599,11.10404026,85.92,85.881,2.27120201]
[1773151636278,11.10404026,85.92,85.872,40.75833798]
[1773151636279,11.10404026,85.94,85.901,2.27120201]
[1773151636482,11.10404026,85.95,85.921,2.27120201]
[1773151636682,2.41014004,85.949,85.91,11.10404026]
[1773151636881,11.10404026,85.97,85.93,11.10404026]
[1773151637082,11.10404026,85.97,85.931,2.27120201]
[1773151637395,11.10404026,85.97,85.93,11.10404026]
[1773151637396,11.10404026,85.99,85.96,11.10404026]
[1773151637578,11.10404026,85.99,85.947,2.27120201]
[1773151637579,2.41014004,85.989,85.947,2.27120201]
[1773151637901,11.10404026,85.98,85.947,2.27120201]
[1773151638191,40.69820032,85.999,85.942,40.7251402]
[1773151638192,11.10404026,85.97,85.942,11.63575434]
[1773151638392,11.10404026,85.97,85.931,29.09285745]
[1773151638393,11.10404026,85.96,85.931,11.63724383]
[1773151638795,13.5141803,85.96,85.931,11.63724383]
[1773151638995,11.10404026,85.97,85.931,11.63724383]
[1773151639200,11.10404026,85.95,85.918,11.63900463]
[1773151639495,11.10404026,85.95,85.91,11.10404026]
[1773151639496,11.10404026,85.94,85.912,2.27120201]
[1773151639875,11.10404026,85.95,85.912,2.27120201]
[1773151640077,2.41014004,85.949,85.912,2.27120201]
[1773151640272,2.41014004,85.949,85.911,40.7398354]
[1773151640273,11.10404026,85.94,85.911,40.7398354]
[1773151640483,2.41014004,85.949,85.912,2.27120201]
[1773151640672,11.10404026,85.95,85.92,11.10404026]
[1773151640893,2.41014004,85.949,85.912,2.27120201]
[1773151641204,11.10404026,85.95,85.912,2.27120201]
[1773151641579,11.63480668,85.949,85.913,11.639682]
[1773151641782,11.10404026,85.95,85.914,2.27120201]
[1773151642098,11.63480668,85.949,85.914,2.27120201]
[1773151642295,2.41014004,85.939,85.913,11.639682]
[1773151642500,2.41014004,85.939,85.891,2.27120201]
[1773151642501,11.10404026,85.92,85.892,11.64252782]
[1773151642798,2.41014004,85.929,85.892,11.64252782]
[1773151643101,11.10404026,85.94,85.901,2.27120201]
[1773151643292,11.10404026,85.93,85.901,2.27120201]
[1773151643802,11.10404026,85.93,85.903,2.27120201]